bitfinex/quotes_BTCUSD_20230113
["timestamp","ask_amount","ask_price","bid_price","bid_amount"]
[1673623395600,0.75962986,19193.0,19190.0,0.52399381]
[1673623395601,0.75962986,19193.0,19192.0,0.32581]
[1673623395824,0.75962986,19193.0,19190.0,0.52399381]
[1673623396080,0.51553997,19192.0,19190.0,0.52399381]
[1673623396326,0.51553997,19192.0,19186.0,0.6536265]
[1673623396327,0.521077,19191.0,19186.0,0.6536265]
[1673623396567,0.521077,19191.0,19188.0,0.68557191]
[1673623396568,0.03261068,19190.0,19188.0,0.68557191]
[1673623396820,0.70405647,19191.0,19189.0,0.32581]
[1673623397074,0.70405647,19191.0,19190.0,0.32581]
[1673623397321,0.53365782,19194.0,19191.0,0.1]
[1673623397576,0.53365782,19194.0,19192.0,0.53611494]
[1673623397577,1.18239562,19194.0,19192.0,0.53611494]
[1673623397817,0.66137862,19194.0,19193.0,0.32581]
[1673623398062,0.66137862,19194.0,19192.0,0.5277397]
[1673623398303,0.66137862,19194.0,19193.0,0.32581]
[1673623399031,0.59736682,19194.0,19188.0,0.00019]
[1673623399297,0.03261068,19193.0,19188.0,0.00019]
[1673623399543,0.55366168,19192.0,19188.0,0.10019]
[1673623399788,1.07471168,19192.0,19189.0,0.32581]
[1673623400032,1.042101,19192.0,19190.0,0.32581]
[1673623400268,1.042101,19192.0,19191.0,0.32581]
[1673623400757,1.13772067,19192.0,19191.0,6e-05]
[1673623401003,1.1421,19192.0,19191.0,6e-05]
[1673623401249,1.4421,19192.0,19191.0,6e-05]
[1673623401807,1.697728,19192.0,19191.0,6e-05]
[1673623402545,2.1010202,19192.0,19191.0,6e-05]
[1673623402796,1.697728,19192.0,19191.0,6e-05]
[1673623403784,2.21808176,19192.0,19191.0,6e-05]
[1673623404033,1.697728,19192.0,19191.0,6e-05]
[1673623404788,1.540956,19192.0,19191.0,6e-05]
[1673623405040,1.90416454,19192.0,19191.0,6e-05]
[1673623405295,0.1,19191.0,19184.0,0.4314479]
[1673623405538,2.084536,19189.0,19184.0,0.00519608]
[1673623405789,0.68823868,19188.0,19184.0,0.70010168]
[1673623406051,1.59618368,19187.0,19184.0,0.00519608]
[1673623406563,0.4,19186.0,19184.0,0.00519608]
[1673623406813,1.298108,19185.0,19184.0,0.00519608]
[1673623407318,1.79381868,19185.0,19184.0,0.00519608]
[1673623407572,0.1,19184.0,19182.0,0.00500297]
[1673623407818,1.563882,19183.0,19182.0,0.00500297]
[1673623408066,1.81951,19183.0,19182.0,0.00500297]
[1673623408308,1.863882,19183.0,19182.0,0.00500297]
[1673623408564,2.11951,19183.0,19182.0,0.00481297]
[1673623408816,1.863882,19183.0,19182.0,0.00481297]
[1673623409059,2.11951,19183.0,19182.0,0.00481297]
[1673623409301,2.21951,19183.0,19182.0,0.00481297]
[1673623410058,2.41406307,19183.0,19182.0,0.00481297]
[1673623410317,2.94029577,19183.0,19182.0,0.00429905]
[1673623410575,2.77719577,19183.0,19182.0,0.00429905]
[1673623410855,2.92277444,19183.0,19182.0,0.00429905]
[1673623411097,2.62277444,19183.0,19182.0,0.00429905]
[1673623411382,2.23569337,19183.0,19182.0,0.00429905]
[1673623412113,1.563882,19183.0,19182.0,0.00429905]
[1673623412355,2.39681522,19183.0,19182.0,0.00429905]
[1673623412635,2.14118722,19183.0,19182.0,0.00429905]
[1673623412884,1.042288,19183.0,19182.0,0.00429905]
[1673623413135,0.521294,19184.0,19182.0,0.61301883]
[1673623413376,1.142588,19183.0,19182.0,0.00429905]
[1673623413603,0.521294,19183.0,19182.0,0.00429905]
[1673623413840,1.22846171,19184.0,19182.0,0.00429905]
[1673623414078,0.521263,19185.0,19182.0,0.21460399]
[1673623414319,0.521263,19185.0,19183.0,0.42581]
[1673623414569,0.521356,19186.0,19184.0,0.53611494]
[1673623414570,0.00013,19186.0,19184.0,0.53611494]
[1673623414814,0.00013,19186.0,19185.0,0.32581]
[1673623415057,0.00013,19186.0,19185.0,0.96061949]
[1673623415301,1.18813632,19190.0,19186.0,0.1]
[1673623415302,0.66701532,19190.0,19186.0,0.1]
[1673623415555,0.66701532,19190.0,19187.0,0.75134686]
[1673623415804,0.54157814,19189.0,19188.0,0.32581]
[1673623416294,0.54157814,19189.0,19186.0,1.22344848]
[1673623416578,0.54157814,19189.0,19183.0,1.23291]
[1673623416579,0.55374668,19189.0,19183.0,1.59095099]
[1673623416823,0.03261068,19188.0,19184.0,0.69449007]
[1673623417085,0.55380168,19187.0,19182.0,0.5661738]
[1673623417326,0.13261068,19186.0,19182.0,0.5661738]
[1673623417565,0.03261068,19185.0,19183.0,0.32581]
[1673623417811,0.621226,19186.0,19184.0,0.32581]
[1673623418058,0.521136,19189.0,19184.0,0.21030494]
[1673623418289,0.48992642,19189.0,19186.0,0.70721292]
[1673623418526,0.1,19188.0,19184.0,0.42276128]
[1673623418786,0.1,19188.0,19185.0,0.50460138]
[1673623418787,1.17495768,19188.0,19185.0,0.50460138]
[1673623419036,1.142347,19188.0,19185.0,0.71490632]
[1673623419266,1.142347,19188.0,19185.0,0.50460138]
[1673623419526,0.521184,19188.0,19185.0,0.71490632]
[1673623419767,1.15287732,19189.0,19185.0,0.50460138]
[1673623420010,1.15287732,19189.0,19185.0,0.71490632]
[1673623420285,0.1,19188.0,19185.0,0.71490632]
[1673623420531,0.1,19188.0,19185.0,0.50460138]
[1673623420772,0.1,19188.0,19186.0,0.32581]
[1673623421037,1.05287732,19189.0,19185.0,0.50460138]
[1673623421276,6e-05,19190.0,19187.0,0.26058]
[1673623421542,6e-05,19190.0,19188.0,0.32581]
[1673623421778,6e-05,19190.0,19189.0,0.32581]
[1673623421779,0.59163513,19190.0,19189.0,0.32581]
[1673623422017,0.59163513,19190.0,19187.0,0.63153234]
[1673623422018,1.11274413,19190.0,19187.0,0.63153234]
[1673623422268,0.1,19189.0,19187.0,0.63153234]
[1673623422507,0.09880138,19189.0,19187.0,0.63153234]
[1673623422746,0.09880138,19189.0,19188.0,0.32581]
[1673623422990,1.44107438,19189.0,19185.0,0.56599639]
[1673623423238,0.03261068,19188.0,19185.0,0.56599639]
[1673623423490,0.521186,19187.0,19186.0,0.66462904]
[1673623423732,1.17447211,19190.0,19187.0,0.54435118]
[1673623423963,1.69557711,19190.0,19188.0,0.32581]
[1673623424202,1.17446111,19190.0,19188.0,0.21030494]
[1673623424441,6e-05,19191.0,19189.0,0.8748985]
[1673623424681,0.51902987,19191.0,19190.0,0.32581]
[1673623424934,0.51902987,19191.0,19189.0,0.82464344]
[1673623425180,0.51902987,19191.0,19187.0,1.042324]
[1673623425421,0.51902987,19191.0,19187.0,0.6754449]
[1673623425422,0.55239039,19189.0,19187.0,0.6754449]
[1673623425668,0.58500107,19189.0,19187.0,0.6754449]
[1673623425929,0.55239039,19189.0,19188.0,0.32581]
[1673623426159,0.55239039,19189.0,19187.0,0.6754449]
[1673623426734,1.14217505,19191.0,19188.0,0.32581]
[1673623426960,0.58333536,19189.0,19186.0,0.421369]
[1673623427185,0.1,19188.0,19186.0,0.51105594]
[1673623427416,0.61594604,19189.0,19186.0,0.51086594]
[1673623427646,0.58333536,19189.0,19187.0,0.32581]
[1673623427888,0.52213569,19191.0,19188.0,0.32581]
[1673623428134,0.52213569,19191.0,19189.0,0.94500204]
[1673623428370,0.52213569,19191.0,19189.0,0.82949698]
[1673623428610,0.61728628,19190.0,19187.0,1.11732239]
[1673623428834,0.61728628,19190.0,19187.0,0.69614339]
[1673623429099,0.61728628,19190.0,19188.0,0.90100397]
[1673623429328,0.00097269,19191.0,19190.0,0.1]
[1673623429550,0.00097269,19191.0,19190.0,0.425831]
[1673623429812,0.6345816,19191.0,19190.0,0.325831]
[1673623430263,0.6345816,19191.0,19190.0,0.0171]
[1673623430776,0.6666547,19192.0,19190.0,0.0171]
[1673623431015,0.51707943,19191.0,19190.0,0.0171]
[1673623431253,0.62105,19192.0,19190.0,0.0171]
[1673623431500,0.3762647,19191.0,19190.0,0.0171]
[1673623431746,0.8973417,19191.0,19190.0,0.0171]
[1673623431992,0.521077,19191.0,19190.0,0.0171]
[1673623432240,1.042154,19191.0,19190.0,0.0171]
[1673623432481,1.402779,19191.0,19190.0,0.0171]
[1673623432721,1.181702,19191.0,19190.0,0.0171]
[1673623432956,0.6074952,19191.0,19190.0,0.0171]
[1673623433439,0.5074952,19191.0,19190.0,0.0171]
[1673623433916,0.31098588,19193.0,19190.0,1.05913741]
[1673623434150,0.92577192,19193.0,19191.0,0.325831]
[1673623434406,0.92577192,19193.0,19192.0,0.325831]
[1673623434857,0.31098588,19193.0,19192.0,1.90375372]
[1673623435085,0.31098588,19193.0,19192.0,1.38270372]
[1673623435779,0.31098588,19193.0,19192.0,0.86165372]
[1673623436019,0.31098588,19193.0,19191.0,1.64736066]
[1673623436258,0.94142462,19193.0,19192.0,0.325831]
[1673623436496,0.94142462,19193.0,19190.0,0.538182]
[1673623436497,0.90881394,19193.0,19190.0,1.10928206]
[1673623436741,0.93642462,19193.0,19190.0,1.20928206]
[1673623437034,0.30598588,19193.0,19192.0,0.1]
[1673623437270,0.30598588,19193.0,19192.0,1.5785035]
[1673623437742,0.30598588,19193.0,19192.0,1.4785035]
[1673623437990,0.30598588,19193.0,19192.0,0.9574535]
[1673623438216,0.30598588,19193.0,19192.0,0.325831]
[1673623438217,0.99344343,19193.0,19192.0,0.325831]
[1673623438912,0.99344343,19193.0,19191.0,0.61920541]
[1673623439176,0.99344343,19193.0,19191.0,1.35058635]
[1673623439177,0.30598588,19193.0,19191.0,1.35058635]
[1673623439408,0.30598588,19193.0,19192.0,0.425831]
[1673623439740,0.30598588,19193.0,19192.0,1.50193991]
[1673623440442,0.30598588,19193.0,19192.0,1.467931]
[1673623440718,0.30598588,19193.0,19192.0,1.97323242]
[1673623440958,0.30598588,19193.0,19192.0,1.467931]
[1673623441442,0.30598588,19193.0,19192.0,2.09308088]
[1673623441682,0.30598588,19193.0,19192.0,0.325831]
[1673623441923,0.88224811,19193.0,19192.0,0.325831]
[1673623442653,0.88224811,19193.0,19191.0,1.16551646]
[1673623442886,0.88224811,19193.0,19192.0,0.325831]
[1673623443145,0.88224811,19193.0,19191.0,0.64444546]
[1673623443381,0.51191577,19192.0,19190.0,0.0171]
[1673623443641,1.06559045,19192.0,19190.0,0.0171]
[1673623443897,1.07472468,19192.0,19190.0,0.0171]
[1673623444130,0.1,19191.0,19190.0,0.0171]
[1673623444368,0.521077,19191.0,19190.0,0.0171]
[1673623444597,1.042154,19191.0,19190.0,0.0171]
[1673623444830,0.78187339,19191.0,19190.0,0.0171]
[1673623445556,1.31099543,19191.0,19190.0,0.0171]
[1673623445778,0.78187339,19191.0,19190.0,0.0171]
[1673623446010,0.88187339,19191.0,19190.0,0.0171]
[1673623446253,1.58408265,19191.0,19190.0,0.0171]
[1673623446488,1.44249839,19191.0,19190.0,0.0171]
[1673623446729,0.88187339,19191.0,19190.0,0.0171]
[1673623446954,1.4942837,19191.0,19190.0,0.0171]
[1673623447251,0.88187339,19191.0,19190.0,0.0171]
[1673623447494,1.36890701,19191.0,19190.0,0.0171]
[1673623447963,1.46890701,19191.0,19190.0,0.0171]
[1673623448194,0.88187339,19191.0,19190.0,0.0171]
[1673623448426,1.18187339,19191.0,19190.0,0.0171]
[1673623448654,1.44249839,19191.0,19190.0,0.0171]
[1673623448895,1.47194673,19191.0,19190.0,0.0171]
[1673623449592,1.34249839,19191.0,19190.0,0.0171]
[1673623449833,1.73491991,19191.0,19190.0,0.0171]
[1673623450081,1.78755032,19191.0,19190.0,0.0171]
[1673623450322,1.42692532,19191.0,19190.0,0.0171]
[1673623450817,1.42692532,19191.0,19190.0,0.07468]
[1673623451058,0.82702788,19193.0,19190.0,1.24664055]
[1673623451301,0.30598588,19193.0,19191.0,0.325831]
[1673623451537,0.30598588,19193.0,19192.0,0.325831]
[1673623452016,0.86242418,19193.0,19192.0,0.325831]
[1673623452742,0.30598588,19193.0,19192.0,0.325831]
[1673623452986,0.30598588,19193.0,19192.0,0.425831]
[1673623453228,0.30598588,19193.0,19192.0,0.589331]
[1673623453464,0.30598588,19193.0,19192.0,1.110381]
[1673623453974,9.255e-05,19194.0,19193.0,0.30598]
[1673623454231,6.63e-06,19195.0,19193.0,3.99855795]
[1673623454467,6.63e-06,19195.0,19194.0,1.2845937]
[1673623454701,6.63e-06,19195.0,19194.0,2.18855615]
[1673623454973,6.63e-06,19195.0,19194.0,2.84763026]
[1673623455224,2.134e-05,19196.0,19194.0,3.53152576]
[1673623455460,2.134e-05,19196.0,19195.0,1.89409629]
[1673623455710,0.48293199,19197.0,19195.0,1.9025017]
[1673623455967,0.48293199,19197.0,19196.0,0.434331]
[1673623456203,1.01414569,19197.0,19196.0,0.325831]
[1673623456460,0.48293199,19197.0,19196.0,0.325831]
[1673623457733,0.48293199,19197.0,19196.0,1.23446864]
[1673623457970,0.26559792,19197.0,19196.0,1.1241637]
[1673623458202,0.26553132,19197.0,19196.0,1.14897735]
[1673623458463,0.26553132,19197.0,19196.0,0.97687735]
[1673623459491,0.91588283,19197.0,19196.0,0.325831]
[1673623459721,0.1,19196.0,19193.0,0.90491591]
[1673623459988,0.13261068,19196.0,19193.0,0.90491591]
[1673623460225,0.03261068,19196.0,19194.0,0.325831]
[1673623460464,0.88327215,19197.0,19195.0,0.325831]
[1673623460706,0.88327215,19197.0,19195.0,0.85762333]
[1673623460947,0.88327215,19197.0,19195.0,0.64731839]
[1673623461203,0.88327215,19197.0,19196.0,0.325831]
[1673623461437,0.88327215,19197.0,19195.0,0.64731839]
[1673623461678,0.55774535,19196.0,19193.0,0.2375966]
[1673623461935,0.1,19195.0,19193.0,0.89588153]
[1673623462182,0.13261068,19195.0,19193.0,0.89588153]
[1673623462481,0.1,19195.0,19193.0,0.89588153]
[1673623462724,0.78644532,19197.0,19196.0,0.69821093]
[1673623462725,0.26553132,19197.0,19196.0,0.69821093]
[1673623462959,0.26553132,19197.0,19196.0,0.90851587]
[1673623463188,0.26553132,19197.0,19196.0,0.53613594]
[1673623463418,0.26553132,19197.0,19196.0,1.75433726]
[1673623463661,0.26553132,19197.0,19196.0,0.846772]
[1673623463885,0.26553132,19197.0,19196.0,0.855272]
[1673623464395,0.26553132,19197.0,19196.0,2.42336054]
[1673623464635,0.01706273,19199.0,19197.0,0.31910065]
[1673623464880,0.01706273,19199.0,19198.0,3.15750964]
[1673623465135,0.01706273,19199.0,19198.0,3.46282784]
[1673623465370,2.73e-06,19199.0,19198.0,4.19936548]
[1673623465594,0.46650052,19202.0,19198.0,4.93689671]
[1673623465837,0.44150052,19202.0,19201.0,0.26032]
[1673623466064,0.84168778,19205.0,19202.0,0.27770148]
[1673623466065,0.80848021,19205.0,19202.0,0.27770148]
[1673623466294,0.80848021,19205.0,19204.0,0.42391]
[1673623466295,0.78348021,19205.0,19204.0,0.42391]
[1673623466540,0.75848021,19205.0,19204.0,1.48627864]
[1673623466779,0.75848021,19205.0,19204.0,1.3844737]
[1673623466780,0.74348021,19205.0,19204.0,1.3844737]
[1673623467038,1.26890011,19205.0,19204.0,0.497931]
[1673623467268,1.26890011,19205.0,19204.0,0.489431]
[1673623467542,0.74348021,19205.0,19204.0,1.63832873]
[1673623467799,0.74348021,19205.0,19204.0,2.05934162]
[1673623468026,0.74348021,19205.0,19204.0,0.489431]
[1673623468257,1.41602343,19205.0,19204.0,0.464431]
[1673623468507,1.31430918,19205.0,19204.0,0.325831]
[1673623468748,1.33221342,19205.0,19204.0,0.325831]
[1673623469483,0.76138445,19205.0,19204.0,2.01196144]
[1673623469726,0.76138445,19205.0,19204.0,2.84305421]
[1673623469980,0.75638445,19205.0,19204.0,1.2873552]
[1673623470233,0.75638445,19205.0,19204.0,0.758261]
[1673623470473,1.35834485,19205.0,19204.0,0.489431]
[1673623470717,1.35834485,19205.0,19204.0,0.325831]
[1673623470718,0.88899513,19205.0,19204.0,0.325831]
[1673623472170,0.47192165,19205.0,19204.0,1.79662894]
[1673623472419,0.47192165,19205.0,19204.0,1.80512894]
[1673623472680,0.47192165,19205.0,19204.0,3.03932664]
[1673623472920,0.47192165,19205.0,19204.0,2.41309394]
[1673623473159,0.47192165,19205.0,19204.0,1.97846]
[1673623473403,0.47192165,19205.0,19204.0,0.846555]
[1673623473643,0.47192165,19205.0,19204.0,1.37007548]
[1673623473889,1.18242815,19205.0,19204.0,0.846555]
[1673623474127,1.14981747,19205.0,19204.0,0.325831]
[1673623474610,1.14981747,19205.0,19202.0,1.4718833]
[1673623474853,1.14981747,19205.0,19203.0,0.325831]
[1673623475100,0.13261068,19204.0,19200.0,0.15019]
[1673623475350,0.03261068,19203.0,19200.0,0.15019]
[1673623475617,0.03261068,19202.0,19200.0,0.15019]
[1673623475872,0.03261068,19202.0,19200.0,0.10019]
[1673623476116,0.12772,19201.0,19200.0,0.10019]
[1673623476634,0.1,19200.0,19197.0,0.31910065]
[1673623476895,0.03261068,19199.0,19197.0,0.31910065]
[1673623477112,0.55347668,19199.0,19197.0,0.31910065]
[1673623477354,0.520866,19199.0,19198.0,0.325831]
[1673623477591,0.620838,19200.0,19197.0,0.31910065]
[1673623477864,0.55734689,19199.0,19197.0,0.31910065]
[1673623478099,0.1,19198.0,19197.0,0.31910065]
[1673623478345,0.55734689,19199.0,19197.0,0.31910065]
[1673623478579,0.55734689,19199.0,19198.0,0.325831]
[1673623479093,1.07820689,19199.0,19197.0,0.31916065]
[1673623479567,0.52078,19202.0,19198.0,0.586261]
[1673623479806,0.66443139,19201.0,19199.0,0.53613594]
[1673623480035,0.66443139,19201.0,19200.0,0.325831]
[1673623480290,2.32482265,19205.0,19200.0,0.53613594]
[1673623480535,0.47192165,19205.0,19204.0,0.26036]
[1673623480770,1.05972898,19205.0,19204.0,0.79621194]
[1673623481016,0.47192165,19205.0,19204.0,1.31693594]
[1673623481766,0.47192165,19205.0,19204.0,1.63686141]
[1673623482002,0.47192165,19205.0,19204.0,2.16309411]
[1673623482466,0.47192165,19205.0,19204.0,1.215131]
[1673623482700,1.10648718,19205.0,19204.0,0.846371]
[1673623483165,1.10648718,19205.0,19204.0,0.325647]
[1673623483889,1.10648718,19205.0,19204.0,0.325377]
[1673623484411,1.20648718,19205.0,19204.0,0.325107]
[1673623484891,0.84643834,19205.0,19204.0,0.325107]
[1673623485409,0.94643834,19205.0,19204.0,0.325107]
[1673623485643,0.84643834,19205.0,19204.0,0.325107]
[1673623486132,0.84643834,19205.0,19204.0,0.585467]
[1673623486372,0.21187281,19205.0,19204.0,0.585467]
[1673623486841,0.21187281,19205.0,19204.0,1.38812187]
[1673623487104,0.21187281,19205.0,19204.0,0.748967]
[1673623487353,0.21187281,19205.0,19204.0,0.325107]
[1673623487354,0.7557249,19205.0,19204.0,0.325107]
[1673623487603,0.8557249,19205.0,19204.0,0.325107]
[1673623488071,0.31187281,19205.0,19201.0,1.23057111]
[1673623488301,1.01531604,19205.0,19202.0,0.26039]
[1673623488544,0.1,19204.0,19202.0,0.96871134]
[1673623488782,0.98270536,19205.0,19203.0,0.325621]
[1673623489014,0.21187281,19205.0,19204.0,0.325621]
[1673623489252,0.81261338,19205.0,19204.0,0.325621]
[1673623489735,0.21187281,19205.0,19204.0,0.831345]
[1673623490206,0.21187281,19205.0,19204.0,1.452069]
[1673623490488,0.21187281,19205.0,19204.0,2.65718909]
[1673623491240,0.21187281,19205.0,19204.0,1.515669]
[1673623491484,0.21187281,19205.0,19204.0,1.615669]
[1673623491943,0.21187281,19205.0,19204.0,1.515669]
[1673623492189,0.74295706,19205.0,19204.0,1.352069]
[1673623492899,0.74295706,19205.0,19204.0,0.831345]
[1673623493639,0.21187281,19205.0,19204.0,1.05014994]
[1673623493893,0.21187281,19205.0,19204.0,3.0798173]
[1673623494866,0.21187281,19205.0,19204.0,2.3935332]
[1673623495581,0.21187281,19205.0,19204.0,3.03782447]
[1673623496071,0.21187281,19205.0,19204.0,1.352069]
[1673623496323,0.83804403,19205.0,19204.0,1.352069]
[1673623496564,0.83804403,19205.0,19204.0,0.310621]
[1673623497323,0.31187281,19205.0,19204.0,0.310621]
[1673623497553,0.31187281,19205.0,19201.0,1.75135411]
[1673623497554,0.83256981,19205.0,19201.0,1.75135411]
[1673623497792,1.42672347,19205.0,19201.0,1.75135411]
[1673623498044,0.77341579,19205.0,19202.0,1.32866614]
[1673623498281,0.21187281,19205.0,19203.0,1.10102137]
[1673623498539,0.21187281,19205.0,19204.0,0.325621]
[1673623498540,0.50345771,19205.0,19204.0,0.325621]
[1673623498783,0.49845771,19205.0,19204.0,0.325621]
[1673623499293,0.1,19204.0,19201.0,2.01175411]
[1673623499524,0.13261068,19204.0,19201.0,2.50964113]
[1673623499763,0.13261068,19204.0,19202.0,0.325621]
[1673623499989,0.1,19204.0,19203.0,0.325621]
[1673623500483,0.49845771,19205.0,19203.0,1.01600536]
[1673623500755,2.41834172,19206.0,19204.0,0.585971]
[1673623501004,3.00487002,19206.0,19205.0,0.325621]
[1673623501739,2.41834172,19206.0,19202.0,0.520755]
[1673623501971,0.59225484,19205.0,19203.0,1.88805287]
[1673623502231,0.59225484,19205.0,19204.0,0.325621]
[1673623502921,2.93901772,19206.0,19202.0,0.520759]
[1673623503272,1.07400468,19205.0,19201.0,1.23057111]
[1673623503275,0.1,19204.0,19201.0,1.23057111]
[1673623503525,0.65333668,19204.0,19202.0,1.0417581]
[1673623503783,0.620726,19204.0,19202.0,1.0417581]
[1673623504046,0.620726,19204.0,19203.0,0.325621]
[1673623504047,0.520726,19204.0,19203.0,0.325621]
[1673623504287,0.6791579,19205.0,19203.0,1.36731799]
[1673623504526,0.6791579,19205.0,19202.0,0.71896458]
[1673623504769,0.6791579,19205.0,19204.0,0.26035]
[1673623505027,2.41834172,19206.0,19204.0,1.106695]
[1673623505269,2.41834172,19206.0,19205.0,0.325621]
[1673623505509,2.41834172,19206.0,19205.0,1.88793323]
[1673623506041,2.41834172,19206.0,19205.0,0.325621]
[1673623506267,2.41834172,19206.0,19202.0,0.59214998]
[1673623506268,0.6085282,19204.0,19202.0,0.59214998]
[1673623506508,2.41834172,19206.0,19203.0,1.04170144]
[1673623506769,2.41834172,19206.0,19204.0,0.580971]
[1673623506770,3.07549429,19206.0,19204.0,0.580971]
[1673623507029,3.07549429,19206.0,19205.0,0.325621]
[1673623507264,3.07549429,19206.0,19204.0,0.64311807]
[1673623507742,3.07549429,19206.0,19205.0,0.325615]
[1673623507986,3.07549429,19206.0,19203.0,0.7811]
[1673623508255,0.70486238,19205.0,19203.0,1.301835]
[1673623508500,0.60460338,19205.0,19204.0,0.325615]
[1673623509241,0.1,19204.0,19201.0,1.75135511]
[1673623509484,0.13261068,19204.0,19201.0,2.25914628]
[1673623509726,0.70173521,19203.0,19201.0,1.75135511]
[1673623509961,0.70173521,19203.0,19202.0,0.325615]
[1673623510452,0.70173521,19203.0,19201.0,1.23057111]
[1673623510691,1.18716566,19205.0,19202.0,0.69858179]
[1673623510935,1.18716566,19205.0,19202.0,0.90888673]
[1673623511175,0.66644466,19205.0,19203.0,0.325615]
[1673623511418,0.66644466,19205.0,19204.0,0.325615]
[1673623511654,0.25381824,19204.0,19202.0,1.25186194]
[1673623511895,0.25381824,19204.0,19201.0,1.49057111]
[1673623512158,0.25381824,19204.0,19203.0,0.1]
[1673623512400,0.1,19205.0,19203.0,0.325615]
[1673623512630,0.60730467,19205.0,19204.0,0.325615]
[1673623512873,3.45971272,19206.0,19203.0,0.61796224]
[1673623512874,2.41834172,19206.0,19203.0,0.61796224]
[1673623513117,2.41834172,19206.0,19205.0,0.26035]
[1673623513394,2.41834172,19206.0,19205.0,1.106662]
[1673623513861,2.41834172,19206.0,19205.0,1.627359]
[1673623514104,3.01496538,19206.0,19205.0,1.627359]
[1673623514348,2.93917901,19206.0,19205.0,0.846312]
[1673623514596,2.95460671,19206.0,19205.0,0.325615]
[1673623515590,2.41834172,19206.0,19205.0,2.15504369]
[1673623517068,2.41834172,19206.0,19205.0,1.11364969]
[1673623517315,2.41834172,19206.0,19202.0,1.50851248]
[1673623517316,2.4509524,19206.0,19202.0,0.15109105]
[1673623517567,2.4509524,19206.0,19201.0,1.49076111]
[1673623517568,0.35821968,19205.0,19201.0,1.49076111]
[1673623517809,1.64718412,19204.0,19201.0,1.49076111]
[1673623518055,0.425609,19203.0,19201.0,1.49057111]
[1673623518294,0.06373,19202.0,19201.0,1.49057111]
[1673623518559,0.68110968,19202.0,19201.0,1.49057111]
[1673623518796,1.074108,19202.0,19201.0,1.49057111]
[1673623519048,1.074108,19202.0,19201.0,7.111e-05]
[1673623519298,1.074108,19202.0,19200.0,0.52754]
[1673623519299,0.946388,19202.0,19200.0,0.52754]
[1673623519546,0.10932,19201.0,19200.0,0.52754]
[1673623519797,0.06373,19201.0,19200.0,0.52754]
[1673623520528,0.61962263,19201.0,19200.0,0.52754]
[1673623520770,0.09634068,19201.0,19200.0,0.52754]
[1673623521011,0.910145,19201.0,19200.0,0.52754]
[1673623521277,1.2516369,19201.0,19200.0,0.52754]
[1673623521528,0.910145,19201.0,19200.0,0.52754]
[1673623521798,1.9247745,19201.0,19200.0,4e-05]
[1673623522059,1.9247745,19201.0,19198.0,0.00441524]
[1673623522060,0.1,19200.0,19198.0,0.00441524]
[1673623522309,0.1,19200.0,19195.0,0.00441524]
[1673623522310,0.1,19198.0,19195.0,0.00441524]
[1673623522566,0.87913368,19197.0,19195.0,0.00441524]
[1673623522830,0.10932,19196.0,19195.0,0.00441524]
[1673623523062,0.76287168,19196.0,19195.0,0.00441524]
[1673623523299,0.730261,19196.0,19195.0,0.00441524]
[1673623523571,1.24648646,19196.0,19195.0,0.00441524]
[1673623523832,0.62554546,19196.0,19195.0,0.00441524]
[1673623524058,0.57995546,19196.0,19195.0,0.00441524]
[1673623524304,0.584671,19196.0,19195.0,0.00441524]
[1673623524552,1.42189784,19196.0,19195.0,0.00441524]
[1673623524791,0.91028,19196.0,19195.0,0.00441524]
[1673623525041,1.56376179,19196.0,19195.0,0.00441524]
[1673623525768,0.874249,19196.0,19195.0,0.00441524]
[1673623526032,1.57073302,19196.0,19195.0,0.00441524]
[1673623526275,0.69648402,19196.0,19195.0,0.00441524]
[1673623526521,0.79648402,19196.0,19195.0,0.00441524]
[1673623526997,1.12209302,19196.0,19195.0,0.00441524]
[1673623527255,0.79648402,19196.0,19195.0,0.00441524]
[1673623527494,0.94655,19196.0,19195.0,0.26441524]
[1673623527744,1.64402091,19196.0,19195.0,0.26441524]
[1673623528711,2.16496191,19196.0,19195.0,0.26441524]
[1673623529212,1.467491,19196.0,19195.0,0.26441524]
[1673623529451,2.15758872,19196.0,19195.0,0.26441524]
[1673623529694,2.05758872,19196.0,19195.0,0.26441524]
[1673623529941,1.73197972,19196.0,19195.0,0.26441524]
[1673623530181,2.05758872,19196.0,19195.0,0.26441524]
[1673623530419,1.77756972,19196.0,19195.0,0.26441524]
[1673623530659,1.087472,19196.0,19195.0,0.26441524]
[1673623530902,1.3483115,19196.0,19195.0,0.26441524]
[1673623531141,1.8692525,19196.0,19195.0,0.26441524]
[1673623531382,2.27346613,19196.0,19195.0,0.26441524]
[1673623531621,2.12787613,19196.0,19195.0,0.26441524]
[1673623531871,2.22787613,19196.0,19195.0,0.26441524]
[1673623532104,0.520941,19196.0,19195.0,0.47472018]
[1673623532352,1e-08,19196.0,19195.0,0.26441524]
[1673623532589,1e-08,19196.0,19195.0,0.79536911]
[1673623533130,1e-08,19196.0,19195.0,1.12097811]
[1673623533378,1e-08,19196.0,19195.0,0.79536911]
[1673623533896,1e-08,19196.0,19195.0,1.31633811]
[1673623534146,1e-08,19196.0,19195.0,2.16291611]
[1673623534381,1e-08,19196.0,19195.0,2.30483192]
[1673623534622,1e-08,19196.0,19195.0,2.04047895]
[1673623534891,1e-08,19196.0,19195.0,2.5749997]
[1673623535099,0.69340229,19202.0,19196.0,5.999e-05]
[1673623535345,0.69340229,19202.0,19201.0,0.2604]
[1673623535588,0.69340229,19202.0,19201.0,0.79631394]
[1673623535842,0.66186897,19205.0,19202.0,0.1]
[1673623536078,0.66186897,19205.0,19204.0,0.26036]
[1673623536325,0.520624,19208.0,19204.0,0.325609]
[1673623536596,0.71657708,19208.0,19201.0,0.40813616]
[1673623536845,0.1,19206.0,19202.0,0.21030494]
[1673623537086,0.1,19206.0,19201.0,0.57795014]
[1673623537087,0.66994901,19206.0,19201.0,0.57795014]
[1673623537323,0.66994901,19206.0,19202.0,0.1]
[1673623537569,0.620691,19206.0,19202.0,0.21030494]
[1673623537820,0.620691,19206.0,19202.0,0.9180559]
[1673623538048,0.620681,19206.0,19202.0,0.8180559]
[1673623538289,0.66993901,19206.0,19201.0,0.2604]
[1673623538533,0.60959901,19206.0,19200.0,0.5793837]
[1673623538809,0.1,19204.0,19200.0,0.78987864]
[1673623539058,0.520757,19203.0,19200.0,0.5795737]
[1673623539294,0.62546576,19202.0,19200.0,0.00019]
[1673623539533,1.14625776,19202.0,19200.0,0.00019]
[1673623539778,1.14625776,19202.0,19200.0,0.51028015]
[1673623540536,1.14625776,19202.0,19200.0,0.00019]
[1673623540751,0.1,19201.0,19196.0,0.59104498]